Cogmind - Beta 16.1 @@@ ROGUE MODE // 2026.02.27 @ 19:16:35 Player: TheSkyeDoctor Result: Destroyed by S-10 Pest with Light Assault Rifle Performance ------------- Evolutions (0) 0 Regions Visited (1) 200 Robots Destroyed (8) 40 Value Destroyed (168) 168 Prototype IDs (0) 0 Alien Tech Used (0) 0 Bonus (0) 0 TOTAL SCORE: 408 Bonus ------- None Cogmind --------- Core Integrity 0/250 Matter 177/300 Energy 75/100 System Corruption 0% Temperature Cool (6) Movement Rolling (100) Location -10/Materials Parts ------- > --- POWER (1) -------- (None) > --- PROPULSION (2) --- Compact Wheel > --- UTILITY (2) ------ Small Storage Unit > --- WEAPON (2) ------- Medium Laser Assault Rifle > --- INVENTORY (8) ---- Light Ion Engine Compact Wheel High-capacity Battery (250) Sensor Array Small Laser Light Assault Rifle Peak State ------------ > --- POWER ------------ Ion Engine > --- PROPULSION ------- Light Treads Light Treads > --- UTILITY ---------- Small Storage Unit Seismic Detector > --- WEAPON ----------- Small Laser Light Assault Rifle > --- INVENTORY -------- Light Ion Engine Wheel Compact Wheel [Rating: 7] Favorites ----------- Power Ion Engine Engine Ion Engine Propulsion Light Treads Treads Light Treads Wheel Compact Wheel Utility Small Storage Unit Device Seismic Detector Storage Small Storage Unit Weapon Light Assault Rifle Energy Gun Small Laser Energy Cannon Beam Cannon Ballistic Gun Light Assault Rifle Build | -11 -10 ------- Run | Yrd Mat Slots Evolved . | . . Power . | . . Propulsion . | . . Utility . | . . Weapon . | . . Parts Attached 12 | 7 5 Power 1 | 1 . Engine 1 | 1 . Core . | . . Reactor . | . . Propulsion 4 | 2 2 Treads 2 | 2 . Leg . | . . Wheel 2 | . 2 Hover . | . . Flight . | . . Utility 2 | 2 . Device 1 | 1 . Storage 1 | 1 . Processor . | . . Hackware . | . . Protection . | . . Artifact . | . . Weapon 5 | 2 3 Energy Gun 2 | 1 1 Energy Cannon 1 | . 1 Ballistic Gun 2 | 1 1 Ballistic Cannon . | . . Launcher . | . . Special Weapon . | . . Impact Weapon . | . . Slashing Weapon . | . . Piercing Weapon . | . . Special Melee Weapon . | . . Unidentified Prototypes . | . . Parts Lost 6 | . 6 Power 1 | . 1 Propulsion 3 | . 3 Utility 1 | . 1 Weapon 1 | . 1 Highest Loss Streak 5 | . 5 To Critical Strikes 1 | . 1 Average Backups 4 | 2 5 Power . | . 1 Propulsion 2 | 2 2 Utility 1 | . 1 Weapon . | . . Tool/Special . | . . Unused Backups 4 | . 4 Power 1 | . 1 Propulsion 1 | . 1 Utility 2 | . 2 Weapon . | . . Tool/Special . | . . Average Slot Usage (%) 95 | . 95 Engine 12 | . 12 Treads 25 | . 25 Wheel 2 | . 2 Device 11 | . 11 Storage 14 | . 14 Energy Gun 11 | . 11 Energy Cannon 1 | . 1 Ballistic Gun 14 | . 14 Peak Build Rating 7 | 7 7 Average Rating 6 | 5 6 On Entrance 3 | . 7 Avg Prop Armor Cover (%) . | . . Naked Turns . | . . Heaviest Build 14 | 13 14 Greatest Support 40 | 40 40 Greatest Overweight (x) . | . . Average Overweight (x) . | . . Largest Inventory Capacity 8 | 8 8 Average Capacity 7 | 7 8 Most Carried 7 | 5 7 Average Carried 4 | 2 5 Final Capacity 8 | 8 8 Final Carried 6 | 4 6 Class Distribution -------------------- 100% | Mutant Dominant Class ---------------- Mutant | -10/Materials Resources | -11 -10 ----------- Run | Yrd Mat Matter Collected 187 | 187 . Remotely . | . . Salvage Created 283 | 92 191 Parts 23 | 7 16 Haulers Intercepted . | . . Recyclers Shooed . | . . Parts Field Recycled . | . . Retrieved Matter . | . . Parts Self-Destructed . | . . Prevented . | . . Parts Restored . | . . Kills | -11 -10 ------- Run | Yrd Mat Combat Hostiles Destroyed 6 | . 6 Guns 2 | . 2 Cannons 4 | . 4 Classes Destroyed 4 | 2 2 Tunneler 1 | 1 . Recycler 1 | 1 . Swarmer 3 | . 3 Grunt 3 | . 3 Best Kill Streak 6 | 2 6 Combat Bots Only 6 | . 6 Max Kills in Single Turn 1 | 1 1 Gunslinging . | . . Exploded . | . . Melee . | . . Uniques/NPCs Destroyed . | . . Combat | -11 -10 -------- Run | Yrd Mat Hostile Shots Fired 121 | . 121 Missed 32 | . 32 Hits 89 | . 89 Projectile 89 | . 89 Critical Strikes 1 | . 1 Damage Taken 866 | . 866 Core 252 | . 252 Absorbed by Shields . | . . Core Remaining (%) 100 | 100 . Volleys Fired 20 | 5 15 Largest 2 | 2 2 Hottest 80 | 60 80 Shots Fired 39 | 10 29 Gun 28 | 10 18 Cannon 11 | . 11 Launcher . | . . Special . | . . Kinetic 20 | 5 15 Thermal 19 | 5 14 Explosive . | . . Electromagnetic . | . . Robot Hit Streak 12 | 5 12 Robot Miss Streak 2 | 2 2 Penetration Max . | . . Secondary Targets . | . . Shots Hit Robots 28 | 8 20 Core Hits 14 | 4 10 Critical Kills . | . . Critical Parts Destroyed . | . . Critical Strikes . | . . Melee Attacks . | . . Impact . | . . Slashing . | . . Piercing . | . . Sneak Attacks . | . . Combat Hostiles . | . . Follow-up Attacks . | . . Damage Inflicted 325 | 74 251 Guns 168 | 74 94 Cannons 157 | . 157 Explosions . | . . Melee . | . . Ramming . | . . Kinetic 100 | 30 70 Thermal 225 | 44 181 Explosive . | . . Electromagnetic . | . . Impact . | . . Slashing . | . . Piercing . | . . Highest Corruption . | . . Average Corruption . | . . Corruption Purged . | . . Corruption Blocked . | . . Overload Shots . | . . Overflow Damage . | . . Projectiles . | . . Explosions . | . . Melee . | . . Knockbacks . | . . Impact . | . . Kinetic . | . . Secondary . | . . Self-Inflicted Damage . | . . Shots . | . . Rammed . | . . Targets Rammed . | . . Kicked . | . . Crushed . | . . Highest Temperature 402 | 20 402 Average Temperature 155 | 13 181 Received Heat Transfer 261 | . 261 Effects 4 | . 4 Shutdowns 1 | . 1 Energy Bleed 1 | . 1 Interference 2 | . 2 Siege Activations . | . . Martial Activations . | . . Shielding Activations . | . . Robots Disrupted . | . . Combat Hostiles . | . . Robots Corrupted . | . . Combat Hostiles . | . . Parts Fried . | . . Impact Corruptions . | . . Robots Melted . | . . Combat Hostiles . | . . Parts Melted 1 | . 1 Heat Transferred 507 | 100 407 Parts Sabotaged . | . . Parts Stolen . | . . Parts Stripped . | . . Power Chain Reactions . | . . Alert | -11 -10 ------- Run | Yrd Mat Maximum Alert Level . | . . Low Security (%) 100 | 100 100 Level 1 . | . . Level 2 . | . . Level 3 . | . . Level 4 . | . . Level 5 . | . . High Security . | . . Max Security . | . . Peak Influence 155 | 10 155 Initial . | . . Average 15 | 1 19 Influence Increases 190 | 10 180 Destroy 0b10 Robot/C 120 | . 120 Destroy 0b10 Robot/NC 10 | 10 . Destroy Leader 30 | . 30 Disable Machine 15 | . 15 Lose Combat Pursuer 15 | . 15 Influence Decreases 90 | 10 80 Time Decay 40 | 10 30 Lost Part 50 | . 50 Squads Dispatched 1 | . 1 Investigation . | . . Extermination . | . . Reinforcement 1 | . 1 Assault . | . . Garrison . | . . Intercept . | . . Searches Triggered . | . . Construction Impeded . | . . Haulers Reinforced . | . . Active Scanning Responses . | . . Cargo Convoy Interrupts . | . . Stealth | -11 -10 --------- Run | Yrd Mat Distress Signals 1 | . 1 Communications Jammed . | . . Distress Signals . | . . Times Spotted 14 | . 14 Peak Tracking Total 7 | . 7 Tactical Retreats 1 | . 1 Traps | -11 -10 ------- Run | Yrd Mat Traps Triggered . | . . Indirectly . | . . Trap Hack Attempts . | . . Triggered . | . . Disarmed . | . . Reprogrammed . | . . Reused . | . . Traps Extracted . | . . Installed . | . . Triggered . | . . Machines | -11 -10 ---------- Run | Yrd Mat Machines Disabled 1 | . 1 Max in Single Turn 1 | . 1 Machines Repaired . | . . Machines Dismantled . | . . Machines Sabotaged . | . . Overloaded Fab Kills . | . . Hacking | -11 -10 --------- Run | Yrd Mat Machines Accessed 3 | . 3 Terminals 2 | . 2 Fabricators . | . . Repair Stations . | . . Recycling Units 1 | . 1 Scanalyzers . | . . Garrison Access . | . . Total Hacks 5 | . 5 Successful 1 | . 1 Failed 4 | . 4 Catastrophic 2 | . 2 Database Lockouts . | . . Manual 4 | . 4 Terminals 4 | . 4 Fabricators . | . . Repair Stations . | . . Recycling Units 1 | . 1 Scanalyzers . | . . Garrison Access . | . . Terminal Hacks . | . . Fabricator Hacks . | . . Repair Station Hacks . | . . Recycling Unit Hacks . | . . Scanalyzer . | . . Garrison Access Hacks . | . . Unauthorized Hacks 1 | . 1 Terminals 1 | . 1 Botnet 1 | . 1 Fabricators . | . . Repair Stations . | . . Recycling Units . | . . Scanalyzers . | . . Garrison Access . | . . Data Cores Recovered . | . . Used . | . . Hacking Detections 3 | . 3 Full Trace Events 1 | . 1 Feedback Events . | . . Feedback Blocked . | . . Robot Schematics Acquired . | . . Robots Built . | . . Authchips . | . . Time . | . . Total Robot Build Rating . | . . Part Schematics Acquired . | . . Parts Built . | . . Authchips . | . . Time . | . . Total Part Build Rating . | . . Part Studies Acquired . | . . Parts Repaired . | . . Time . | . . Parts Recycled . | . . Recycled Matter . | . . Retrieved Matter . | . . Retrieved Components . | . . Parts Scanalyzed . | . . Part Schematics Acquired . | . . Parts Damaged . | . . Bothacking | -11 -10 ------------ Run | Yrd Mat Used RIF Installer . | . . Robots Hacked . | . . Non-combat . | . . Combat . | . . Robot Hacks Applied . | . . Relay Couplers Released . | . . Fabnet Peak Effective % . | . . Robots Rewired . | . . Allies Hacked . | . . Hacks Repelled . | . . Allies | -11 -10 -------- Run | Yrd Mat Total Allies . | . . Largest Group . | . . Highest-Rated Group . | . . Highest-Rated Ally . | . . Total Orders . | . . Ally Attacks . | . . Total Damage . | . . Kills . | . . Allies Corrupted . | . . Allies Melted . | . . Intel | -11 -10 ------- Run | Yrd Mat Active Infowar (turns) 367 | 39 328 Seismic 367 | 39 328 Robot Analysis Total . | . . Derelict Logs Recovered . | . . Drone Launches . | . . Drone Recoveries . | . . Exploration | -11 -10 ------------- Run | Yrd Mat Turns Passed 513 | 115 398 Spaces Moved 283 | 56 227 Core 3 | 3 . Treads 258 | 53 205 Legs . | . . Wheels 22 | . 22 Hover . | . . Flight . | . . Fastest Speed 50 | 50 90 Average Speed 153 | 154 153 Slowest Speed 160 | 160 160 Overloaded Moves . | . . Propulsion Burnouts . | . . Robots Hopped . | . . Potential Cave-ins . | . . Cave-ins Triggered . | . . Exploration Rate (%) 19 | 4 34 Regions Visited 1 Branch Regions . Pre-discovered Areas . | . . Known Exits Taken . | . . Unknown Exits Taken 1 | 1 . Scrap Searched . | . . Spaces Dug . | . . Terrain Destroyed . | . . Melee . | . . Projectile . | . . AOE . | . . Terrain Rammed . | . . Walls Destroyed . | . . Machines Disabled . | . . Actions | -11 -10 --------- Run | Yrd Mat Total 323 | 73 250 Wait . | . . Move 282 | 55 227 Hop . | . . Pick Up 7 | 5 2 Fast Attach 9 | 7 2 Attach 2 | . 2 Detach 1 | . 1 Swap 1 | . 1 Drop 1 | 1 . Fire 20 | 5 15 Melee . | . . Ram . | . . Kick . | . . Crush . | . . Escape Stasis . | . . Rewire . | . . Trap . | . . Miscellaneous . | . . Route ------- -11/Scrapyard -10/Materials History --------- Turn | Location | Event 8 | -11/Scrapyard | Discovered new exit (range 15) 116 | -11/Scrapyard | Entered Materials 306 | -10/Materials | Build established: Mutant 479 | -10/Materials | Core integrity fell below 50% 511 | -10/Materials | Core integrity fell below 20% 514 | -10/Materials | Destroyed by S-10 Pest with Light Assault Rifle Last Messages --------------- 00467_ Lgt. Assault Rifle temporarily disabled. 00467_ Beam Cannon temporarily disabled. 00468_ R-06 Scavenger collects Lgt. Assault Rifle. 00468_ K-01 Serf collects debris. 00472_ Overheating: Energy bleed (-37). 00472_ K-01 Serf collects debris. 00475_ K-01 Serf destroyed. 00478_ Lgt. Treads destroyed. 00478_ Critical hit (Destroy). 00478_ Lgt. Treads destroyed. 00481_ Beam Cannon destroyed. 00482_ Ion Engine destroyed. 00485_ R-06 Scavenger collects Aluminum Leg. 00485_ R-06 Scavenger collects Lgt. Ion Engine. 00489_ R-06 Scavenger collects Flight Unit. 00492_ R-06 Scavenger collects Lgt. Assault Rifle. 00501_ Acquired Med. Laser. 00512_ Wheel destroyed. Map ----- +----------------------------------------------------+ | ????????????????????????????????????????? | | ????????????????????????????????????????? | | ????????????????????????????????????????? | | ????????????????????????????????????????? | | ????????????????????????????????????????? | | ????????????????????????????????????????? | | ????????????????????????????????????????? | | ????????????????????????????????????????? | | ?????????????????????? ???????????????? | | ?????????????????????? #??????????????? | | ?????????????????????# ##?????????????? | | ????????????????????? ?????????????? | | ????????????????????? ?????????????? | | ????????????????????? = ??????????????? | | ????????????????????? ??????????????? | | ????????????????????? ??????????????? | | ?????????????????????# #??????????????? | | ?????????????????????# #??????????????? | | ?????????????????????# #??????????????? | | ????????????????????? #??????????????? | | ?????????????????????# #??????????????? | | ?????????????????????# #??????????????? | | ??????????????######## #??????????????? | | ??????????????# !!g g ############ ??? | | ??????????????# [!!ss# ?? | | ??????????????# @!!g # ?? | | ??????????????# *# ?? | | ??????????????# # """ """ """ ??? | | ??????????????# # """ """ """ ?? | | ??????????????######## """ """ """ ?? | | ?????????????????????# ?? | | ?????????????????????# ?? | | ?????????????????????# """ [""" """ | | ?????????????????????# """%=""" """ | | ????????############## """%%""" """ | | ????????# % | | ????????# | | ????????# | | ?????#######+###############^ % | | ?????# #????????# | | ?????# """ """ """#????????# """% " " ^ | | ?????# """ """ Y"########## """ """ | | ?????# """ """ """# # """ """ | | ?????# # # ?? | | ?????#######+####+# # ?? | | ??????????# # ######## ##? | | ??????????# + "" #???????? #?? | | ??????????# ###### """ #???????? #?? | | ??######### #????# R" #????????????? | | ??# ## #????# """ #????????????? | +----------------------------------------------------+ Best States ------------- Heat Dissipation 25 Energy Generation 10 Energy Capacity 250 Matter Stores 212 Matter Capacity 300 Sight Range 16 Terrain Scan Density 10 Evasion (%) 42 Recoil Reduction 2 Item Schematics ----------------- None Robot Schematics ------------------ None Fabricated ------------ Nothing Repaired ---------- Nothing Studied --------- None Alien Tech Used ----------------- None Achievements -------------- None Challenges ------------ None Game ------ Seed DeflectorReactiveLayer Manual? 0 Play Time 00:05:44 Cumulative 46.5 hours Start 2026.02.27 @ 19:13:21 End 2026.02.27 @ 19:16:35 Sessions 1 Manual Loads 0 Difficulty Rogue Special Mode None Game No. 109 Rogue 109 Adventurer 0 Explorer 0 Win Type - Total 0 Types 0/0/0/0/0/0/0/0/0/0 Lore% 29 Gallery% 37 Achievement% 29 Wizard Run 0 Options --------- Layout 2 ASCII 0 Keyboard 1 Movement Arrows Keybinds 0 Fullscreen 1 Font 24/Smallcaps Map View 50x44 Zoom Use 0% Tactical HUD 1 Map Filters NONE Filters NONE Steam 1 RUN: 304a361c-4043-46de-8ef6-ebf15eab7115